fUSD/lending_fUSD_20250502
["ID","MTS","AMOUNT","RATE_DAILY","PERIOD"]
[359653888,1746222272670,8040.40845064,0.00018799,2]
[359653889,1746222273222,-290.60471069,0.00019613,2]
[359653890,1746222277443,-299.50201424,0.00019613,2]
[359653891,1746222282924,-163.0922284,0.00019613,2]
[359653892,1746222286744,-163.022522,0.00019613,2]
[359653893,1746222291337,-263.89318283,0.00019613,2]
[359653894,1746222305931,1959.59154936,0.00019,2]
[359653895,1746222305952,5059.14845064,0.00019,2]
[359653896,1746222330957,1000.0,0.00018801,2]
[359653897,1746222394764,622.34,0.00016884,2]
[359653898,1746222395004,622.34,0.00019148,2]
[359653899,1746222454256,500.0,0.0003284,60]
[359653902,1746222588898,250.0,0.00018841,7]
[359653903,1746222606482,2696.17154936,0.00019,2]
[359653904,1746222606505,5402.37845064,0.00019,2]
[359653910,1746222637028,-404.4750197,0.00019613,2]
[359653913,1746222638286,-1993.64663758,0.00019613,2]
[359653914,1746222638296,-2398.12165724,0.00019645,2]
[359653915,1746222638305,-2398.12165724,0.00019677,2]
[359653916,1746222638315,-2398.12165724,0.00019709,2]
[359653917,1746222638325,-1200.0,0.0001971,2]
[359653918,1746222638334,-300.0,0.0001971,2]
[359653919,1746222638343,-500.0,0.00019711,2]
[359653920,1746222638352,-500.0,0.00019711,2]
[359653921,1746222638362,-500.0,0.00019711,2]
[359653922,1746222638371,-500.0,0.00019711,2]
[359653923,1746222638380,-500.0,0.00019711,2]
[359653924,1746222638389,-500.0,0.00019711,2]
[359653925,1746222638398,-500.0,0.00019711,2]
[359653926,1746222638407,-500.0,0.00019711,2]
[359653927,1746222638417,-500.0,0.00019711,2]
[359653928,1746222638426,-500.0,0.00019711,2]
[359653929,1746222638436,-500.0,0.00019711,2]
[359653930,1746222638445,-500.0,0.00019711,2]
[359653931,1746222638454,-500.0,0.00019711,2]
[359653932,1746222638464,-200.0,0.00019711,2]
[359653933,1746222638473,-500.0,0.00019711,2]
[359653934,1746222638483,-500.0,0.00019711,2]
[359653935,1746222638492,-500.0,0.00019711,2]
[359653936,1746222638502,-500.0,0.00019711,2]
[359653937,1746222638511,-376.54890209,0.00019711,2]
[359653939,1746222638524,-123.45109791,0.00019711,2]
[359653940,1746222638533,-500.0,0.00019711,2]
[359653941,1746222638542,-500.0,0.00019711,2]
[359653942,1746222638552,-500.0,0.00019711,2]
[359653943,1746222638562,-500.0,0.00019711,2]
[359653944,1746222638572,-500.0,0.00019711,2]
[359653945,1746222638581,-500.0,0.00019711,2]
[359653946,1746222638591,-87.79320901,0.00019711,2]
[359653947,1746222640252,-412.20679099,0.00019711,2]
[359653948,1746222640262,-500.0,0.00019711,2]
[359653949,1746222640272,-500.0,0.00019711,2]
[359653950,1746222640282,-500.0,0.00019711,2]
[359653951,1746222640291,-500.0,0.00019711,2]
[359653952,1746222640301,-500.0,0.00019711,2]
[359653953,1746222640310,-500.0,0.00019711,2]
[359653954,1746222640322,-500.0,0.00019711,2]
[359653955,1746222640332,-500.0,0.00019711,2]
[359653956,1746222640342,-500.0,0.00019711,2]
[359653957,1746222640352,-500.0,0.00019711,2]
[359653958,1746222640362,-500.0,0.00019711,2]
[359653959,1746222640371,-500.0,0.00019711,2]
[359653960,1746222640381,-500.0,0.00019711,2]
[359653961,1746222640391,-500.0,0.00019711,2]
[359653962,1746222640400,-500.0,0.00019711,2]
[359653963,1746222640410,-500.0,0.00019711,2]
[359653964,1746222640420,-500.0,0.00019711,2]
[359653965,1746222640430,-274.77359362,0.00019711,2]
[359653966,1746222640440,-500.0,0.00019711,2]
[359653967,1746222640450,-500.0,0.00019711,2]
[359653968,1746222640459,-500.0,0.00019711,2]
[359653969,1746222640469,-500.0,0.00019711,2]
[359653970,1746222640478,-500.0,0.00019711,2]
[359653971,1746222640488,-500.0,0.00019711,2]
[359653972,1746222640497,-500.0,0.00019711,2]
[359653973,1746222640506,-200.0,0.00019711,2]
[359653974,1746222640516,-545.71395688,0.00019712,2]
[359653975,1746222640526,-450.0,0.00019712,2]
[359653976,1746222640535,-450.0,0.00019712,2]
[359653977,1746222640545,-450.0,0.00019712,2]
[359653978,1746222640554,-450.0,0.00019712,2]
[359653979,1746222640563,-450.0,0.00019712,2]
[359653980,1746222640572,-553.47632,0.00019712,2]
[359653981,1746222640582,-450.0,0.00019712,2]
[359653982,1746222640591,-450.0,0.00019712,2]
[359653983,1746222640601,-450.0,0.00019712,2]
[359653984,1746222640611,-450.0,0.00019712,2]
[359653985,1746222640622,-450.0,0.00019712,2]
[359653986,1746222640631,-894.130531,0.00019712,2]
[359653987,1746222640641,-450.0,0.00019712,2]
[359653988,1746222640651,-648.81,0.00019712,2]
[359653989,1746222640661,-454.69,0.00019712,2]
[359653990,1746222640670,-450.0,0.00019712,2]
[359653991,1746222640680,-450.0,0.00019712,2]
[359653992,1746222640690,-450.0,0.00019712,2]
[359653993,1746222640700,-450.0,0.00019712,2]
[359653994,1746222640709,-450.0,0.00019712,2]
[359653995,1746222640719,-450.0,0.00019712,2]
[359653996,1746222640729,-450.0,0.00019712,2]
[359653997,1746222640738,-450.0,0.00019712,2]
[359653998,1746222640747,-450.0,0.00019712,2]
[359653999,1746222640757,-450.0,0.00019712,2]
[359654000,1746222640767,-158.136091,0.00019712,2]
[359654001,1746222640776,-450.0,0.00019712,2]
[359654002,1746222640786,-450.0,0.00019712,2]
[359654003,1746222640795,-450.0,0.00019712,2]
[359654004,1746222640805,-450.0,0.00019712,2]
[359654005,1746222640815,-450.0,0.00019712,2]
[359654006,1746222640824,-450.0,0.00019712,2]
[359654007,1746222640834,-450.0,0.00019712,2]
[359654008,1746222640843,-450.0,0.00019712,2]
[359654009,1746222640853,-364.38940204,0.00019712,2]
[359654010,1746222640862,-450.0,0.00019712,2]
[359654011,1746222640872,-450.0,0.00019712,2]
[359654012,1746222640881,-450.0,0.00019712,2]
[359654013,1746222640890,-450.0,0.00019712,2]
[359654014,1746222640900,-450.0,0.00019712,2]
[359654015,1746222640909,-450.0,0.00019712,2]
[359654016,1746222640918,-450.0,0.00019712,2]
[359654017,1746222640928,-450.0,0.00019712,2]
[359654018,1746222640937,-505.29,0.00019712,2]
[359654019,1746222640947,-450.0,0.00019712,2]
[359654020,1746222640958,-450.0,0.00019712,2]
[359654021,1746222640967,-7595.16,0.00019712,2]
[359654022,1746222640979,-450.0,0.00019712,2]
[359654023,1746222640988,-450.0,0.00019712,2]
[359654024,1746222640998,-408.15101168,0.00019712,2]
[359654025,1746222641007,-450.0,0.00019712,2]
[359654026,1746222641017,-450.0,0.00019712,2]
[359654027,1746222641027,-450.0,0.00019712,2]
[359654028,1746222641036,-450.0,0.00019712,2]
[359654029,1746222641046,-450.0,0.00019712,2]
[359654030,1746222641056,-526.42,0.00019712,2]
[359654031,1746222641065,-450.0,0.00019712,2]
[359654032,1746222641077,-374.24,0.00019712,2]
[359654033,1746222641086,-450.0,0.00019712,2]
[359654034,1746222641098,-5841.3,0.00019712,2]
[359654035,1746222641107,-450.0,0.00019712,2]
[359654036,1746222641117,-463.08,0.00019712,2]
[359654037,1746222641126,-450.0,0.00019712,2]
[359654038,1746222641137,-450.0,0.00019712,2]
[359654039,1746222641146,-450.0,0.00019712,2]
[359654040,1746222641156,-450.0,0.00019712,2]
[359654041,1746222641165,-450.0,0.00019712,2]
[359654042,1746222641176,-450.0,0.00019712,2]
[359654043,1746222641185,-450.0,0.00019712,2]
[359654044,1746222641195,-450.0,0.00019712,2]
[359654045,1746222641204,-450.0,0.00019712,2]
[359654046,1746222641213,-450.0,0.00019712,2]
[359654047,1746222641223,-450.0,0.00019712,2]
[359654048,1746222641233,-450.0,0.00019712,2]
[359654049,1746222641243,-450.0,0.00019712,2]
[359654050,1746222641252,-450.0,0.00019712,2]
[359654051,1746222641261,-450.0,0.00019712,2]
[359654052,1746222641270,-513.16,0.00019712,2]
[359654053,1746222641280,-450.0,0.00019712,2]
[359654054,1746222641289,-450.0,0.00019712,2]
[359654055,1746222641298,-450.0,0.00019712,2]
[359654056,1746222641308,-450.0,0.00019712,2]
[359654057,1746222641317,-450.0,0.00019712,2]
[359654058,1746222641326,-500.0,0.00019712,2]
[359654059,1746222641335,-500.0,0.00019712,2]
[359654060,1746222641345,-450.0,0.00019712,2]
[359654061,1746222641354,-450.0,0.00019712,2]
[359654062,1746222641363,-450.0,0.00019712,2]
[359654063,1746222641372,-601.99,0.00019712,2]
[359654064,1746222641381,-1238.85,0.00019712,2]
[359654065,1746222641391,-450.0,0.00019712,2]
[359654066,1746222641400,-699.9,0.00019712,2]
[359654067,1746222641410,-450.0,0.00019712,2]
[359654068,1746222641419,-318.17590123,0.00019712,2]
[359654069,1746222641430,-450.0,0.00019712,2]
[359654070,1746222641440,-450.0,0.00019712,2]
[359654071,1746222641451,-450.0,0.00019712,2]
[359654072,1746222641463,-2282.54,0.00019712,2]
[359654073,1746222641472,-450.0,0.00019712,2]
[359654074,1746222641482,-492.25,0.00019712,2]
[359654075,1746222641491,-450.0,0.00019712,2]
[359654076,1746222641500,-504.2,0.00019712,2]
[359654077,1746222641509,-450.0,0.00019712,2]
[359654078,1746222641520,-450.0,0.00019712,2]
[359654079,1746222641529,-450.0,0.00019712,2]
[359654080,1746222641538,-450.0,0.00019712,2]
[359654081,1746222641547,-450.0,0.00019712,2]
[359654082,1746222641556,-1175.23,0.00019712,2]
[359654083,1746222641566,-1017.9,0.00019712,2]
[359654084,1746222641575,-450.0,0.00019712,2]
[359654085,1746222641584,-450.0,0.00019712,2]
[359654086,1746222641593,-450.0,0.00019712,2]
[359654087,1746222641603,-450.0,0.00019712,2]
[359654088,1746222641613,-534.32,0.00019712,2]
[359654089,1746222641623,-450.0,0.00019712,2]
[359654090,1746222641632,-450.0,0.00019712,2]
[359654091,1746222641641,-464.33,0.00019712,2]
[359654092,1746222641651,-450.0,0.00019712,2]
[359654093,1746222641660,-1561.02,0.00019712,2]
[359654094,1746222641671,-450.0,0.00019712,2]
[359654095,1746222641680,-450.0,0.00019712,2]
[359654096,1746222641690,-450.0,0.00019712,2]
[359654097,1746222641701,-450.0,0.00019712,2]
[359654098,1746222641711,-529.81,0.00019712,2]
[359654099,1746222641721,-450.0,0.00019712,2]
[359654100,1746222641731,-450.0,0.00019712,2]
[359654101,1746222641740,-450.0,0.00019712,2]
[359654102,1746222641750,-1082.35,0.00019712,2]
[359654103,1746222641759,-450.0,0.00019712,2]
[359654104,1746222641769,-1612.23,0.00019712,2]
[359654105,1746222641778,-450.0,0.00019712,2]
[359654106,1746222641787,-450.0,0.00019712,2]
[359654107,1746222641796,-450.0,0.00019712,2]
[359654108,1746222641806,-450.0,0.00019712,2]
[359654109,1746222641815,-1607.61,0.00019712,2]
[359654110,1746222641825,-450.0,0.00019712,2]
[359654111,1746222641835,-1445.06,0.00019712,2]
[359654112,1746222641844,-450.0,0.00019712,2]
[359654113,1746222641853,-471.0796644,0.00019713,2]
[359654114,1746222641863,-450.0,0.00019713,2]
[359654115,1746222641873,-450.0,0.00019713,2]
[359654116,1746222641882,-518.05,0.00019713,2]
[359654117,1746222641891,-450.0,0.00019713,2]
[359654118,1746222641901,-450.0,0.00019713,2]
[359654119,1746222641910,-450.0,0.00019713,2]
[359654120,1746222641920,-450.0,0.00019713,2]
[359654121,1746222641930,-302.32396757,0.00019713,2]
[359654122,1746222641939,-450.0,0.00019713,2]
[359654123,1746222641950,-450.0,0.00019713,2]
[359654124,1746222641960,-454.09,0.00019713,2]
[359654125,1746222641969,-634.62,0.00019713,2]
[359654126,1746222641978,-215.66564025,0.00019713,2]
[359654127,1746222641987,-450.0,0.00019713,2]
[359654128,1746222641997,-450.0,0.00019713,2]
[359654129,1746222642006,-450.0,0.00019713,2]
[359654130,1746222642015,-450.0,0.00019713,2]
[359654131,1746222642025,-450.0,0.00019713,2]
[359654132,1746222642034,-450.0,0.00019713,2]
[359654133,1746222642043,-522.10119627,0.00019713,2]
[359654134,1746222642053,-554.09941886,0.00019713,2]
[359654135,1746222642063,-450.0,0.00019713,2]
[359654136,1746222642071,-450.0,0.00019713,2]
[359654137,1746222642082,-450.0,0.00019713,2]
[359654138,1746222642092,-450.0,0.00019713,2]
[359654139,1746222642106,-450.0,0.00019713,2]
[359654140,1746222642115,-450.0,0.00019713,2]
[359654141,1746222642124,-450.0,0.00019713,2]
[359654142,1746222642133,-450.0,0.00019713,2]
[359654143,1746222642145,-450.0,0.00019713,2]
[359654144,1746222642154,-450.0,0.00019713,2]
[359654145,1746222642163,-450.0,0.00019713,2]
[359654146,1746222642172,-450.0,0.00019713,2]
[359654147,1746222642182,-450.0,0.00019713,2]
[359654148,1746222642192,-450.0,0.00019713,2]
[359654149,1746222642201,-495.22,0.00019713,2]
[359654150,1746222642210,-450.0,0.00019713,2]
[359654151,1746222642219,-450.0,0.00019713,2]
[359654152,1746222642228,-450.0,0.00019713,2]
[359654153,1746222642237,-498.38,0.00019713,2]
[359654154,1746222642246,-584.12,0.00019713,2]
[359654155,1746222642255,-450.0,0.00019713,2]
[359654156,1746222642264,-450.0,0.00019713,2]
[359654157,1746222642274,-450.0,0.00019713,2]
[359654158,1746222642284,-450.0,0.00019713,2]
[359654159,1746222642293,-450.0,0.00019713,2]
[359654160,1746222642303,-636.21,0.00019713,2]
[359654161,1746222642312,-450.0,0.00019713,2]
[359654162,1746222642322,-450.0,0.00019713,2]
[359654163,1746222642332,-450.0,0.00019713,2]
[359654164,1746222642342,-587.11,0.00019713,2]
[359654165,1746222642352,-450.0,0.00019713,2]
[359654166,1746222642361,-450.0,0.00019713,2]
[359654167,1746222642371,-450.0,0.00019713,2]
[359654168,1746222642380,-450.0,0.00019713,2]
[359654169,1746222642390,-450.0,0.00019713,2]
[359654170,1746222642399,-226.52449439,0.00019713,2]
[359654171,1746222642408,-598.25,0.00019713,2]
[359654172,1746222642418,-282.44482249,0.00019713,2]
[359654173,1746222642427,-450.0,0.00019713,2]
[359654174,1746222642438,-450.0,0.00019713,2]
[359654175,1746222642447,-450.0,0.00019713,2]
[359654176,1746222642456,-450.0,0.00019713,2]
[359654177,1746222642466,-450.0,0.00019713,2]
[359654178,1746222642475,-450.0,0.00019713,2]
[359654179,1746222642484,-716.2,0.00019713,2]
[359654180,1746222642494,-450.0,0.00019713,2]
[359654181,1746222642504,-450.0,0.00019713,2]
[359654182,1746222642514,-511.33,0.00019713,2]
[359654183,1746222642524,-450.0,0.00019713,2]
[359654184,1746222642533,-450.0,0.00019713,2]
[359654185,1746222642543,-450.0,0.00019713,2]
[359654186,1746222642552,-450.0,0.00019713,2]
[359654187,1746222642562,-450.0,0.00019713,2]
[359654188,1746222642571,-450.0,0.00019713,2]
[359654189,1746222642581,-450.0,0.00019713,2]
[359654190,1746222642590,-523.06,0.00019713,2]
[359654191,1746222642600,-450.0,0.00019713,2]
[359654192,1746222642609,-298.56431226,0.00019713,2]
[359654193,1746222642619,-450.0,0.00019713,2]
[359654197,1746222642862,-450.0,0.00019713,2]
[359654198,1746222642873,-450.0,0.00019713,2]
[359654199,1746222642883,-450.0,0.00019713,2]
[359654200,1746222642892,-450.0,0.00019713,2]
[359654201,1746222642902,-479.878237,0.00019713,2]
[359654202,1746222642911,-450.0,0.00019713,2]
[359654203,1746222642920,-608.79,0.00019713,2]
[359654204,1746222642931,-450.0,0.00019713,2]
[359654207,1746222642940,-450.0,0.00019713,2]
[359654210,1746222642950,-450.0,0.00019713,2]
[359654212,1746222642960,-450.0,0.00019713,2]
[359654213,1746222642971,-450.0,0.00019713,2]
[359654214,1746222642981,-450.0,0.00019713,2]
[359654215,1746222642994,-597.29392894,0.00019713,2]
[359654216,1746222643004,-450.0,0.00019713,2]
[359654217,1746222643013,-450.0,0.00019713,2]
[359654218,1746222643023,-845.43,0.00019713,2]
[359654219,1746222643033,-450.0,0.00019713,2]
[359654220,1746222643043,-800.49,0.00019713,2]
[359654221,1746222643052,-450.0,0.00019713,2]
[359654222,1746222643061,-450.0,0.00019713,2]
[359654223,1746222643070,-450.0,0.00019713,2]
[359654224,1746222643080,-450.0,0.00019713,2]
[359654225,1746222643089,-556.7,0.00019713,2]
[359654226,1746222643103,-450.0,0.00019713,2]
[359654227,1746222643112,-450.0,0.00019713,2]
[359654228,1746222643124,-450.0,0.00019713,2]
[359654229,1746222643134,-1086.67,0.00019713,2]
[359654230,1746222643144,-450.0,0.00019713,2]
[359654231,1746222643153,-504.41864297,0.00019713,2]
[359654232,1746222643163,-450.0,0.00019713,2]
[359654233,1746222643173,-450.0,0.00019713,2]
[359654234,1746222643183,-450.0,0.00019713,2]
[359654235,1746222643192,-450.0,0.00019713,2]
[359654236,1746222643201,-450.0,0.00019713,2]
[359654237,1746222643211,-450.0,0.00019713,2]
[359654238,1746222643221,-1010.91,0.00019713,2]
[359654239,1746222643230,-580.14,0.00019713,2]
[359654240,1746222643240,-470.26,0.00019713,2]
[359654241,1746222643249,-450.0,0.00019713,2]
[359654242,1746222643259,-450.0,0.00019713,2]
[359654243,1746222643268,-592.95,0.00019713,2]
[359654244,1746222643278,-450.0,0.00019713,2]
[359654245,1746222643288,-450.0,0.00019713,2]
[359654246,1746222643297,-450.0,0.00019713,2]
[359654247,1746222643306,-300.0,0.00019713,2]
[359654248,1746222643316,-450.0,0.00019713,2]
[359654249,1746222643326,-1490.27,0.00019713,2]
[359654250,1746222643335,-509.46,0.00019713,2]
[359654251,1746222643345,-179.37068499,0.00019713,2]
[359654252,1746222643354,-450.0,0.00019713,2]
[359654253,1746222643363,-450.0,0.00019713,2]
[359654254,1746222643371,-450.0,0.00019713,2]
[359654255,1746222643380,-237.0578191,0.00019713,2]
[359654256,1746222643389,-450.0,0.00019713,2]
[359654257,1746222643398,-450.0,0.00019713,2]
[359654258,1746222643407,-735.66,0.00019713,2]
[359654259,1746222643416,-450.0,0.00019713,2]
[359654260,1746222643426,-562.37,0.00019713,2]
[359654261,1746222643435,-839.09,0.00019713,2]
[359654262,1746222643445,-450.0,0.00019713,2]
[359654263,1746222643458,-450.0,0.00019713,2]
[359654265,1746222643468,-450.0,0.00019713,2]
[359654267,1746222643478,-450.0,0.00019713,2]
[359654268,1746222643487,-450.0,0.00019713,2]
[359654269,1746222643497,-520.81,0.00019713,2]
[359654270,1746222643506,-450.0,0.00019713,2]
[359654271,1746222643516,-450.0,0.00019713,2]
[359654272,1746222643526,-219.28933762,0.00019713,2]
[359654273,1746222643536,-450.0,0.00019713,2]
[359654274,1746222643546,-450.0,0.00019713,2]
[359654275,1746222643556,-450.0,0.00019713,2]
[359654276,1746222643565,-450.0,0.00019713,2]
[359654277,1746222643575,-563.16,0.00019713,2]
[359654278,1746222643585,-450.0,0.00019713,2]
[359654279,1746222643595,-443.38565678,0.00019713,2]
[359654280,1746222643604,-450.0,0.00019713,2]
[359654281,1746222643614,-450.0,0.00019713,2]
[359654282,1746222643623,-450.0,0.00019713,2]
[359654283,1746222643633,-507.24,0.00019713,2]
[359654284,1746222643642,-720.83,0.00019713,2]
[359654285,1746222643652,-450.0,0.00019713,2]
[359654286,1746222643663,-450.0,0.00019713,2]
[359654287,1746222643673,-450.0,0.00019713,2]
[359654288,1746222643683,-450.0,0.00019713,2]
[359654289,1746222643693,-450.0,0.00019713,2]
[359654290,1746222643702,-450.0,0.00019713,2]
[359654291,1746222643712,-450.0,0.00019713,2]
[359654292,1746222643721,-2540.79,0.00019713,2]
[359654293,1746222643731,-729.63,0.00019713,2]
[359654294,1746222643740,-603.86,0.00019713,2]
[359654295,1746222643749,-450.0,0.00019713,2]
[359654296,1746222643759,-450.0,0.00019713,2]
[359654297,1746222643768,-450.0,0.00019713,2]
[359654298,1746222643777,-751.47,0.00019713,2]
[359654299,1746222643787,-450.0,0.00019713,2]
[359654300,1746222643797,-450.0,0.00019713,2]
[359654301,1746222643806,-1759.53,0.00019713,2]
[359654302,1746222643816,-450.0,0.00019713,2]
[359654303,1746222643825,-450.0,0.00019713,2]
[359654304,1746222643835,-462.55,0.00019713,2]
[359654305,1746222643845,-450.0,0.00019713,2]
[359654306,1746222643855,-1056.82,0.00019713,2]
[359654307,1746222643865,-644.02,0.00019713,2]
[359654308,1746222643875,-604.08,0.00019713,2]
[359654309,1746222643884,-450.0,0.00019713,2]
[359654310,1746222643893,-450.0,0.00019713,2]
[359654311,1746222643903,-506.49,0.00019713,2]
[359654312,1746222643912,-450.0,0.00019713,2]
[359654313,1746222643922,-450.0,0.00019713,2]
[359654314,1746222643932,-450.0,0.00019713,2]
[359654315,1746222643942,-1107.44,0.00019713,2]
[359654316,1746222643951,-450.0,0.00019713,2]
[359654317,1746222643961,-450.0,0.00019713,2]
[359654318,1746222643970,-1187.28,0.00019713,2]
[359654319,1746222643980,-450.0,0.00019713,2]
[359654320,1746222643990,-450.0,0.00019713,2]
[359654321,1746222643999,-779.81,0.00019713,2]
[359654322,1746222644009,-450.0,0.00019713,2]
[359654323,1746222644018,-450.0,0.00019713,2]
[359654324,1746222644028,-450.0,0.00019713,2]
[359654325,1746222644037,-450.0,0.00019713,2]
[359654326,1746222644046,-154.18898431,0.00019713,2]
[359654327,1746222644056,-450.0,0.00019713,2]
[359654328,1746222644065,-450.0,0.00019713,2]
[359654329,1746222644075,-450.0,0.00019713,2]
[359654330,1746222644084,-450.0,0.00019713,2]
[359654331,1746222644096,-450.0,0.00019713,2]
[359654332,1746222644105,-450.0,0.00019713,2]
[359654333,1746222644114,-521.98,0.00019713,2]
[359654334,1746222644124,-521.54,0.00019713,2]
[359654335,1746222644134,-450.0,0.00019713,2]
[359654336,1746222644143,-450.0,0.00019713,2]
[359654337,1746222644152,-450.0,0.00019713,2]
[359654338,1746222644162,-450.0,0.00019713,2]
[359654339,1746222644171,-450.0,0.00019713,2]
[359654340,1746222644180,-932.82,0.00019713,2]
[359654341,1746222644190,-450.0,0.00019713,2]
[359654342,1746222644199,-450.0,0.00019713,2]
[359654343,1746222644209,-790.69,0.00019713,2]
[359654344,1746222644218,-450.0,0.00019713,2]
[359654345,1746222644227,-450.0,0.00019713,2]
[359654346,1746222644236,-453.35,0.00019713,2]
[359654347,1746222644245,-858.37,0.00019713,2]
[359654348,1746222644254,-1225.44,0.00019713,2]
[359654349,1746222644265,-483.39,0.00019713,2]
[359654350,1746222644274,-450.0,0.00019713,2]
[359654351,1746222644284,-457.15,0.00019713,2]
[359654352,1746222644293,-450.0,0.00019713,2]
[359654353,1746222644302,-450.0,0.00019713,2]
[359654354,1746222644312,-450.0,0.00019713,2]
[359654355,1746222644321,-450.0,0.00019713,2]
[359654356,1746222644331,-450.0,0.00019713,2]
[359654357,1746222644340,-568.36,0.00019713,2]
[359654358,1746222644349,-765.86,0.00019713,2]
[359654359,1746222644359,-3821.3,0.00019713,2]
[359654360,1746222644368,-615.77,0.00019713,2]
[359654361,1746222644378,-911.62,0.00019713,2]
[359654362,1746222644387,-450.0,0.00019713,2]
[359654363,1746222644396,-1553.65,0.00019713,2]
[359654364,1746222644405,-564.81,0.00019713,2]
[359654365,1746222644415,-450.0,0.00019713,2]
[359654366,1746222644424,-666.04,0.00019713,2]
[359654367,1746222644433,-452.91,0.00019713,2]
[359654368,1746222644443,-4359.37,0.00019713,2]
[359654369,1746222644452,-450.0,0.00019713,2]
[359654370,1746222644461,-4228.93,0.00019713,2]
[359654371,1746222644470,-492.36,0.00019713,2]
[359654372,1746222644480,-468.76,0.00019713,2]
[359654373,1746222644489,-450.0,0.00019713,2]
[359654374,1746222644499,-450.0,0.00019713,2]
[359654375,1746222644508,-450.0,0.00019713,2]
[359654376,1746222644517,-454.81,0.00019713,2]
[359654377,1746222644527,-450.0,0.00019713,2]
[359654378,1746222644536,-972.55,0.00019713,2]
[359654379,1746222644545,-450.0,0.00019713,2]
[359654380,1746222644554,-450.0,0.00019713,2]
[359654381,1746222644564,-450.0,0.00019713,2]
[359654382,1746222644573,-766.96,0.00019713,2]
[359654383,1746222644583,-525.75,0.00019713,2]
[359654384,1746222644593,-4356.75,0.00019713,2]
[359654385,1746222644603,-450.0,0.00019713,2]
[359654386,1746222644613,-450.0,0.00019713,2]
[359654387,1746222644623,-450.0,0.00019713,2]
[359654388,1746222644632,-469.8,0.00019713,2]
[359654389,1746222644642,-88348.56,0.00019713,2]
[359654390,1746222644652,-450.0,0.00019713,2]
[359654391,1746222644661,-555.26,0.00019713,2]
[359654392,1746222644671,-500.0,0.00019713,2]
[359654393,1746222644680,-500.0,0.00019713,2]
[359654394,1746222644690,-542.01,0.00019713,2]
[359654395,1746222644700,-450.0,0.00019713,2]
[359654396,1746222644709,-450.0,0.00019713,2]
[359654397,1746222644718,-450.0,0.00019713,2]
[359654398,1746222644728,-2807.2,0.00019713,2]
[359654399,1746222644737,-450.0,0.00019713,2]
[359654400,1746222644747,-725.15,0.00019713,2]
[359654401,1746222644756,-28640.54,0.00019713,2]
[359654402,1746222644766,-109553.91,0.00019713,2]
[359654403,1746222644776,-450.0,0.00019713,2]
[359654404,1746222644785,-2313.64,0.00019713,2]
[359654405,1746222644795,-1875.87,0.00019713,2]
[359654406,1746222644804,-496.25,0.00019713,2]
[359654407,1746222644813,-555.23,0.00019713,2]